fUST/lending_fUST_20251122
["ID","MTS","AMOUNT","RATE_DAILY","PERIOD"]
[394607951,1763753438107,-500.0,0.00011405,2]
[394607952,1763753438117,-500.0,0.00011405,2]
[394607953,1763753438126,-500.0,0.00011405,2]
[394607954,1763753438135,-500.0,0.00011405,2]
[394607955,1763753438145,-500.0,0.00011405,2]
[394607956,1763753438154,-500.0,0.00011405,2]
[394607957,1763753438163,-500.0,0.00011405,2]
[394607958,1763753438173,-500.0,0.00011405,2]
[394607959,1763753438183,-500.0,0.00011405,2]
[394607960,1763753438192,-500.0,0.00011405,2]
[394607961,1763753438203,-500.0,0.00011405,2]
[394607962,1763753438214,-500.0,0.00011405,2]
[394607963,1763753438223,-500.0,0.00011405,2]
[394607964,1763753438233,-799.8569696,0.00011405,2]
[394607965,1763753438243,-799.8569696,0.00011405,2]
[394607966,1763753438253,-799.8569696,0.00011405,2]
[394607967,1763753438263,-799.8569696,0.00011405,2]
[394607968,1763753438273,-799.8569696,0.00011405,2]
[394607969,1763753438285,-799.8569696,0.00011405,2]
[394607970,1763753438295,-799.8569696,0.00011405,2]
[394607971,1763753438305,-799.8569696,0.00011405,2]
[394607972,1763753438316,-799.8569696,0.00011405,2]
[394607973,1763753438327,-799.8569696,0.00011405,2]
[394607974,1763753438337,-799.8569696,0.00011405,2]
[394607975,1763753438347,-799.8569696,0.00011405,2]
[394607976,1763753438357,-799.8569696,0.00011405,2]
[394607977,1763753438367,-799.8569696,0.00011405,2]
[394607978,1763753438377,-799.8569696,0.00011405,2]
[394607979,1763753438388,-799.8569696,0.00011405,2]
[394607980,1763753438399,-799.8569696,0.00011405,2]
[394607981,1763753438412,-799.8569696,0.00011405,2]
[394607982,1763753438423,-799.8569696,0.00011405,2]
[394607983,1763753438434,-799.8569696,0.00011405,2]
[394607984,1763753438444,-799.8569696,0.00011405,2]
[394607985,1763753438464,-799.8569696,0.00011405,2]
[394607986,1763753438475,-799.8569696,0.00011405,2]
[394607987,1763753438487,-799.8569696,0.00011405,2]
[394607988,1763753438500,-799.8569696,0.00011405,2]
[394607989,1763753438511,-799.8569696,0.00011405,2]
[394607990,1763753438522,-799.8569696,0.00011405,2]
[394607991,1763753438532,-799.8569696,0.00011405,2]
[394607992,1763753438543,-799.8569696,0.00011405,2]
[394607993,1763753438554,-799.8569696,0.00011405,2]
[394607994,1763753438565,-799.8569696,0.00011405,2]
[394607995,1763753438577,-799.8569696,0.00011405,2]
[394607996,1763753438590,-799.8569696,0.00011405,2]
[394607997,1763753438601,-799.8569696,0.00011405,2]
[394607998,1763753438613,-799.8569696,0.00011405,2]
[394607999,1763753438623,-799.8569696,0.00011405,2]
[394608000,1763753438634,-799.85696962,0.00011405,2]
[394608001,1763753438645,-799.85696962,0.00011405,2]
[394608002,1763753438655,-799.85696962,0.00011405,2]
[394608003,1763753438666,-799.85696962,0.00011405,2]
[394608004,1763753438677,-799.85696962,0.00011405,2]
[394608005,1763753438688,-799.85696962,0.00011405,2]
[394608006,1763753438698,-799.85696962,0.00011405,2]
[394608007,1763753438718,-799.85696962,0.00011405,2]
[394608008,1763753438729,-500.0,0.00011429,2]
[394608009,1763753438740,-210785.18277975,0.00011465,2]
[394608054,1763754631861,-946.80724221,9.045e-05,2]
[394608056,1763754631873,-256.41739185,9.136e-05,2]
[394608176,1763754638305,-690.38985036,9.136e-05,2]
[394608178,1763754638317,-150.0,9.275e-05,2]
[394608180,1763754638328,-139.88910468,9.976e-05,2]
[394608185,1763754638375,-397.54104496,9.976e-05,2]
[394608189,1763754638416,-3411.86362656,9.976e-05,2]
[394608190,1763754638428,-994.33209912,0.0001,2]
[394608191,1763754638440,-193.18,0.00010501,2]
[394608192,1763754638451,-193.17,0.00010501,2]
[394608193,1763754638464,-163.99786796,0.00010505,2]
[394608194,1763754638476,-189.6991325,0.0001082,2]
[394608196,1763754638489,-334.78367265,0.00010882,2]
[394608250,1763754640119,-886.1463975,0.00010882,2]
[394608252,1763754640128,-209.40437684,0.00011127,2]
[394608254,1763754640138,-300.0,0.00011132,2]
[394608256,1763754640147,-500.0,0.00011133,2]
[394608258,1763754640157,-262.99336682,0.00011133,2]
[394608260,1763754640167,-500.0,0.00011133,2]
[394608262,1763754640177,-500.0,0.00011133,2]
[394608264,1763754640186,-513.39150093,0.00011133,2]
[394608266,1763754640195,-500.0,0.00011133,2]
[394608268,1763754640204,-500.0,0.00011133,2]
[394608270,1763754640214,-500.0,0.00011133,2]
[394608272,1763754640223,-500.0,0.00011133,2]
[394608274,1763754640233,-500.0,0.00011133,2]
[394608276,1763754640242,-500.0,0.00011133,2]
[394608278,1763754640251,-500.0,0.00011133,2]
[394608280,1763754640261,-500.0,0.00011133,2]
[394608282,1763754640271,-500.0,0.00011133,2]
[394608284,1763754640280,-183.60182976,0.00011133,2]
[394608286,1763754640289,-209.56952651,0.00011133,2]
[394608288,1763754640298,-500.0,0.00011133,2]
[394608290,1763754640307,-500.0,0.00011133,2]
[394608292,1763754640317,-500.0,0.00011133,2]
[394608294,1763754640326,-500.0,0.00011133,2]
[394608295,1763754640335,-500.0,0.00011133,2]
[394608298,1763754640345,-500.0,0.00011133,2]
[394608300,1763754640354,-500.0,0.00011133,2]
[394608302,1763754640363,-500.0,0.00011133,2]
[394608304,1763754640373,-500.0,0.00011133,2]
[394608306,1763754640382,-500.0,0.00011133,2]
[394608308,1763754640391,-500.0,0.00011133,2]
[394608310,1763754640400,-500.0,0.00011133,2]
[394608312,1763754640409,-500.0,0.00011133,2]
[394608314,1763754640419,-500.0,0.00011133,2]
[394608316,1763754640428,-500.0,0.00011133,2]
[394608318,1763754640438,-500.0,0.00011133,2]
[394608320,1763754640447,-500.0,0.00011133,2]
[394608322,1763754640457,-500.0,0.00011133,2]
[394608324,1763754640467,-500.0,0.00011133,2]
[394608326,1763754640476,-500.0,0.00011133,2]
[394608328,1763754640486,-500.0,0.00011133,2]
[394608330,1763754640495,-500.0,0.00011133,2]
[394608331,1763754640504,-500.0,0.00011133,2]
[394608333,1763754640513,-500.0,0.00011133,2]
[394608334,1763754640522,-410.0,0.00011133,2]
[394608336,1763754640531,-500.0,0.00011133,2]
[394608338,1763754640540,-500.0,0.00011133,2]
[394608339,1763754640549,-500.0,0.00011133,2]
[394608341,1763754640558,-500.0,0.00011133,2]
[394608342,1763754640567,-500.0,0.00011133,2]
[394608344,1763754640577,-21741.27558269,0.00011134,2]
[394608346,1763754640592,-1028.7095496,0.00011134,2]
[394608440,1763754645887,-31690.14989202,0.00011023,2]
[394608441,1763754645897,-50000.0,0.00011133,2]
[394608442,1763754645907,-470053.52857514,0.00011134,2]
[394608455,1763755620006,206.62175082,8.255e-05,2]
[394608456,1763755642028,206.62175082,8.255e-05,2]
[394608457,1763755650554,206.62175082,8.255e-05,2]
[394608458,1763755673520,150.0,8.213e-05,2]
[394608459,1763755695597,150.0,8.213e-05,2]
[394608460,1763755718669,150.0,8.213e-05,2]
[394608461,1763755741110,150.0,8.213e-05,2]
[394608462,1763755763172,150.0,8.213e-05,2]
[394608463,1763755785802,150.0,8.213e-05,2]
[394608464,1763755807747,150.0,8.213e-05,2]
[394608465,1763755829770,150.0,8.213e-05,2]
[394608484,1763755832091,-150.0,8.296e-05,2]
[394608486,1763755832101,-150.0,8.38e-05,2]
[394608488,1763755832111,-225.3443563,8.507e-05,2]
[394608490,1763755832120,-206.62175082,9.036e-05,2]
[394608492,1763755832131,-1710.55807213,9.783e-05,2]
[394608493,1763755832140,-320.39589858,0.0001,2]
[394608495,1763755832149,-1710.55807213,0.00010347,2]
[394608497,1763755832158,-177.0,0.0001038,2]
[394608499,1763755832167,-401.52,0.00010501,2]
[394608500,1763755832177,-500.0,0.0001057,2]
[394608502,1763755832194,-500.0,0.0001057,2]
[394608505,1763755832203,-253.216,0.00010705,2]
[394608508,1763755832212,-1710.55807213,0.00010911,2]
[394608511,1763755832222,-329.15794522,0.00010916,2]
[394608514,1763755832231,-300.0,0.0001092,2]
[394608516,1763755832240,-500.0,0.00010921,2]
[394608518,1763755832249,-100.06983269,0.00010921,2]
[394608542,1763755838193,-86.99703728,0.00010921,2]
[394608544,1763755838202,-500.0,0.00010921,2]
[394608546,1763755838212,-20.05495618,0.00010921,2]
[394608548,1763755838225,-479.94504382,0.00010921,2]
[394608550,1763755838234,-500.0,0.00010921,2]
[394608553,1763755838244,-161.95695265,0.00010921,2]
[394608555,1763755838254,-500.0,0.00010922,2]
[394608557,1763755838264,-559.37405065,0.00010922,2]
[394608558,1763755838274,-89273.16051468,0.00010923,2]
[394608570,1763755838376,-19148.07032646,0.00010923,2]
[394608665,1763755843496,-150.0,0.00010922,2]
[394608668,1763755843513,-274.84992613,0.00010923,2]
[394608673,1763755843553,-826.18160396,0.00010923,2]
[394608776,1763755845409,-1412.0,0.00010923,2]
[394608777,1763755845465,-1166.30300781,0.00010923,2]
[394608827,1763757032553,-305.79170615,8.753e-05,2]
[394608829,1763757032562,-72.71863206,8.841e-05,2]
[394608855,1763757032827,-233.07307409,8.841e-05,2]
[394608857,1763757032836,-305.79170615,8.93e-05,2]
[394608859,1763757032846,-150.0,9.343e-05,2]
[394608861,1763757032855,-951.3523187,9.581e-05,2]
[394608863,1763757032865,-163.99786796,9.977e-05,2]
[394608865,1763757032874,-500.0,0.0001046,2]
[394608867,1763757032883,-731.42065422,0.00010524,2]
[394608869,1763757032892,-1197.95507821,0.00010583,2]
[394608871,1763757032901,-300.0,0.0001082,2]
[394608873,1763757032910,-1200.0,0.0001082,2]
[394608875,1763757032920,-300.0,0.0001082,2]
[394608877,1763757032929,-202.573,0.00010822,2]
[394608878,1763757032937,-500.0,0.00010822,2]
[394608880,1763757032946,-240.43145932,0.00010822,2]
[394608881,1763757032955,-241.56183546,0.00010822,2]
[394608882,1763757032964,-240.21743918,0.00010822,2]
[394608883,1763757032974,-4704.68626458,0.00010823,2]
[394609032,1763757044424,-42643.35327549,0.00010608,2]
[394609236,1763758238658,-300.0,8.941e-05,2]
[394609237,1763758238668,-300.0,9.031e-05,2]
[394609238,1763758238678,-300.0,9.122e-05,2]
[394609239,1763758238688,-150.0,9.261e-05,2]
[394609240,1763758238697,-162.059,0.00010509,2]
[394609241,1763758238707,-300.0,0.00010622,2]
[394609242,1763758238717,-168.30202152,0.00010622,2]
[394609243,1763758238726,-337.56603543,0.00010622,2]
[394609244,1763758238738,-181.52724939,0.00010622,2]
[394609245,1763758238748,-431.53082573,0.00010622,2]
[394609246,1763758238761,-500.0,0.00010622,2]
[394609247,1763758238771,-500.0,0.00010622,2]
[394609248,1763758238780,-500.0,0.00010622,2]
[394609249,1763758238790,-213.39013598,0.00010622,2]
[394609250,1763758238799,-2449.83985296,0.00010623,2]
[394609252,1763758238810,-5828.81562136,0.00010623,2]
[394609253,1763758238822,-39444.1880662,0.00010623,2]
[394609294,1763758246896,-414319.57190907,0.00010623,2]
[394609295,1763758246907,-9239.59067387,0.00010623,2]
[394609302,1763758718321,169.598572,4.706e-05,2]
[394609353,1763759437749,-706.95306006,9.229e-05,2]
[394609355,1763759437760,-381.18565502,9.229e-05,2]
[394609415,1763759439985,-385.86128492,9.229e-05,2]
[394609416,1763759439995,-1474.0,9.322e-05,2]
[394609417,1763759440004,-150.0,9.464e-05,2]
[394609418,1763759440014,-567.68233173,0.0001,2]
[394609419,1763759440022,-274.0,0.0001052,2]
[394609420,1763759440031,-1200.0,0.0001052,2]
[394609421,1763759440040,-363.36529937,0.00010522,2]
[394609422,1763759440049,-15708.89465329,0.00010523,2]
[394609471,1763759444356,-1870.45593103,0.00010523,2]
[394609476,1763759445170,-453.0,0.00010523,2]
[394609493,1763759515111,10000.0,0.00014,10]
[394609494,1763759535477,10000.0,0.00014,10]
[394609499,1763760503061,155.0,0.00018,30]
[394609500,1763760504647,1532.52372607,0.0002,30]
[394609501,1763760511404,3744.12312212,0.0002,30]
[394609502,1763760517513,400.0,0.0002,30]
[394609503,1763760518526,200.0,0.000245,120]
[394609504,1763760594167,5000.0,0.00014,10]
[394609505,1763760602283,5000.0,0.00014,10]
[394609506,1763760617399,5000.0,0.00014,10]
[394609507,1763760625176,5000.0,0.00014,10]
[394609601,1763760637956,-150.0,9.371e-05,2]
[394609602,1763760637966,-300.0,0.00010098,2]
[394609603,1763760637976,-500.21742159,0.00010098,2]
[394609604,1763760637985,-488.98030745,0.00010098,2]
[394609605,1763760637995,-500.0,0.00010098,2]
[394609606,1763760638004,-500.0,0.00010098,2]
[394609607,1763760638013,-500.0,0.00010098,2]
[394609608,1763760638023,-500.0,0.00010098,2]
[394609609,1763760638033,-500.0,0.00010098,2]
[394609610,1763760638043,-290.90074796,0.00010098,2]
[394609612,1763760638053,-500.0,0.00010098,2]
[394609614,1763760638063,-500.0,0.00010098,2]
[394609616,1763760638072,-500.0,0.00010098,2]
[394609618,1763760638082,-500.0,0.00010098,2]
[394609620,1763760638092,-500.0,0.00010098,2]
[394609622,1763760638102,-500.0,0.00010098,2]
[394609624,1763760638113,-500.0,0.00010098,2]
[394609626,1763760638122,-500.0,0.00010098,2]
[394609627,1763760638132,-500.0,0.00010098,2]
[394609628,1763760638141,-178.46765025,0.00010098,2]
[394609629,1763760638152,-500.0,0.00010098,2]
[394609630,1763760638162,-500.0,0.00010098,2]
[394609631,1763760638171,-500.0,0.00010098,2]
[394609632,1763760638181,-500.0,0.00010098,2]
[394609633,1763760638191,-500.0,0.00010098,2]
[394609634,1763760638201,-500.0,0.00010098,2]
[394609635,1763760638210,-500.0,0.00010098,2]
[394609636,1763760638220,-500.0,0.00010098,2]
[394609637,1763760638230,-500.0,0.00010098,2]
[394609638,1763760638239,-500.0,0.00010098,2]
[394609639,1763760638249,-500.0,0.00010098,2]
[394609640,1763760638258,-500.0,0.00010098,2]
[394609641,1763760638268,-500.0,0.00010098,2]
[394609642,1763760638277,-500.0,0.00010098,2]
[394609643,1763760638287,-500.0,0.00010098,2]
[394609644,1763760638297,-291.32750202,0.00010098,2]
[394609645,1763760638306,-500.0,0.00010098,2]
[394609646,1763760638316,-500.0,0.00010098,2]
[394609647,1763760638325,-500.0,0.00010098,2]
[394609648,1763760638335,-500.0,0.00010098,2]
[394609649,1763760638345,-500.0,0.00010098,2]
[394609650,1763760638355,-500.0,0.00010098,2]
[394609651,1763760638366,-500.0,0.00010098,2]
[394609652,1763760638375,-500.0,0.00010098,2]
[394609653,1763760638386,-235.54704611,0.00010272,2]
[394609654,1763760638395,-500.0,0.00010272,2]
[394609655,1763760638405,-530.92193462,0.00010272,2]
[394609656,1763760638415,-500.0,0.00010272,2]
[394609657,1763760638424,-13655.93739,0.00010273,2]
[394609658,1763760638437,-344.03999067,0.00010273,2]
[394609660,1763760638446,-152.44518229,0.00010311,2]
[394609662,1763760638456,-151.98929535,0.00010311,2]
[394609664,1763760638465,-153.19973971,0.00010311,2]
[394609666,1763760638475,-155.62906489,0.00010311,2]
[394609668,1763760638484,-151.39524175,0.00010311,2]
[394609670,1763760638493,-151.94186312,0.00010311,2]
[394609672,1763760638502,-152.00138222,0.00010311,2]
[394609674,1763760638512,-153.82138668,0.00010311,2]
[394609676,1763760638521,-25515.83685332,0.00010312,2]
[394609678,1763760638532,-3006.72,0.00010312,2]
[394609680,1763760638544,-2739.5793,0.00010312,2]
[394609682,1763760638557,-12271.545354,0.00010312,2]
[394609867,1763760646311,-150.0,9.277e-05,2]
[394609868,1763760646321,-5799.59063214,0.00010312,2]
[394609869,1763761031066,218.33434681,8.255e-05,2]
[394609870,1763761046684,218.33434681,8.255e-05,2]
[394609871,1763761070537,150.0,8.213e-05,2]
[394609872,1763761093555,150.0,8.213e-05,2]
[394609873,1763761115996,150.0,8.213e-05,2]
[394609874,1763761137982,150.0,8.213e-05,2]
[394609875,1763761144680,228.16824617,0.00010603,120]
[394609876,1763761160412,150.0,8.213e-05,2]
[394609877,1763761182878,150.0,8.213e-05,2]
[394609879,1763761205862,150.0,8.213e-05,2]
[394609880,1763761227815,150.0,8.213e-05,2]
[394609881,1763761249887,150.0,8.213e-05,2]
[394609882,1763761258082,150.0,8.213e-05,2]
[394609883,1763761273202,150.0,8.255e-05,2]
[394609884,1763761280976,150.0,8.255e-05,2]
[394609885,1763761296097,150.0,8.255e-05,2]
[394609886,1763761303887,150.0,8.255e-05,2]
[394609887,1763761319311,150.0,8.255e-05,2]
[394609888,1763761327368,150.0,8.255e-05,2]
[394609889,1763761342720,150.0,8.255e-05,2]
[394609890,1763761351300,150.0,8.255e-05,2]
[394609891,1763761366248,150.0,8.255e-05,2]
[394609892,1763761374021,150.0,8.255e-05,2]
[394609894,1763761389239,150.0,8.255e-05,2]
[394609895,1763761397112,150.0,8.255e-05,2]
[394609896,1763761412216,150.0,8.255e-05,2]
[394609897,1763761420176,150.0,8.255e-05,2]
[394609898,1763761435262,150.0,8.255e-05,2]
[394609899,1763761444129,150.0,8.255e-05,2]
[394609900,1763761459397,150.0,8.255e-05,2]
[394609901,1763761467066,150.0,8.255e-05,2]
[394609902,1763761482314,150.0,8.255e-05,2]
[394609903,1763761489928,150.0,8.255e-05,2]
[394609905,1763761505103,150.0,8.255e-05,2]
[394609906,1763761513366,150.0,8.255e-05,2]
[394609907,1763761528748,150.0,8.255e-05,2]
[394609908,1763761551639,150.0,8.255e-05,2]
[394609909,1763761573613,150.0,8.255e-05,2]
[394609910,1763761596123,150.0,8.255e-05,2]
[394609911,1763761618666,150.0,8.255e-05,2]
[394609912,1763761640682,150.0,8.255e-05,2]
[394609914,1763761663301,150.0,8.255e-05,2]
[394609915,1763761685828,150.0,8.255e-05,2]
[394609916,1763761707969,150.0,8.255e-05,2]
[394609917,1763761730794,150.0,8.255e-05,2]
[394609918,1763761738909,150.0,8.255e-05,2]
[394609919,1763761761997,150.0,8.255e-05,2]
[394609920,1763761784025,150.0,8.255e-05,2]
[394609921,1763761807311,150.0,8.255e-05,2]
[394609922,1763761829045,150.0,8.255e-05,2]
[394609988,1763761832938,-150.0,8.338e-05,2]
[394609989,1763761833144,-150.0,8.423e-05,2]
[394609990,1763761833161,-11.55926035,8.507e-05,2]
[394610001,1763761838235,-251.87991549,8.507e-05,2]
[394610003,1763761838245,-2086.30517388,9.783e-05,2]
[394610004,1763761838255,-500.0,9.972e-05,2]
[394610005,1763761838265,-500.0,9.972e-05,2]
[394610006,1763761838274,-500.0,9.972e-05,2]
[394610007,1763761838284,-500.0,9.972e-05,2]
[394610008,1763761838293,-500.0,9.972e-05,2]
[394610009,1763761838303,-500.0,9.972e-05,2]
[394610010,1763761838312,-500.0,9.972e-05,2]
[394610011,1763761838321,-430.2172245,9.972e-05,2]
[394610012,1763761838330,-500.0,9.972e-05,2]
[394610013,1763761838340,-500.0,9.972e-05,2]
[394610015,1763761838350,-500.0,9.972e-05,2]
[394610016,1763761838359,-500.0,9.972e-05,2]
[394610017,1763761838369,-500.0,9.972e-05,2]
[394610018,1763761838379,-500.0,9.972e-05,2]
[394610019,1763761838389,-500.0,9.972e-05,2]
[394610020,1763761838399,-500.0,9.972e-05,2]
[394610021,1763761838408,-500.0,9.972e-05,2]
[394610022,1763761838418,-500.0,9.972e-05,2]
[394610023,1763761838428,-500.0,9.972e-05,2]
[394610024,1763761838439,-500.0,9.972e-05,2]
[394610025,1763761838450,-500.0,9.972e-05,2]
[394610026,1763761838460,-500.0,9.972e-05,2]
[394610027,1763761838469,-500.0,9.972e-05,2]
[394610028,1763761838479,-500.0,9.972e-05,2]
[394610029,1763761838488,-500.0,9.972e-05,2]
[394610030,1763761838498,-500.0,9.972e-05,2]
[394610031,1763761838508,-502.70906598,9.972e-05,2]
[394610032,1763761838519,-500.0,9.972e-05,2]
[394610033,1763761838528,-500.0,9.972e-05,2]
[394610034,1763761838537,-500.0,9.972e-05,2]
[394610035,1763761838547,-500.0,9.972e-05,2]
[394610036,1763761838555,-500.0,9.972e-05,2]
[394610037,1763761838565,-500.0,9.972e-05,2]
[394610038,1763761838574,-500.0,9.972e-05,2]
[394610039,1763761838583,-500.0,9.972e-05,2]
[394610040,1763761838593,-500.0,9.972e-05,2]
[394610041,1763761838602,-500.0,9.972e-05,2]
[394610042,1763761838612,-500.0,9.972e-05,2]
[394610043,1763761838621,-500.0,9.972e-05,2]
[394610044,1763761838631,-500.0,9.972e-05,2]
[394610045,1763761838640,-500.0,9.972e-05,2]
[394610046,1763761838649,-500.0,9.972e-05,2]
[394610047,1763761838659,-500.0,9.972e-05,2]
[394610048,1763761838668,-500.0,9.972e-05,2]
[394610049,1763761838678,-500.0,9.972e-05,2]
[394610050,1763761838688,-500.0,9.972e-05,2]
[394610051,1763761838699,-500.0,9.972e-05,2]
[394610052,1763761838708,-500.0,9.972e-05,2]
[394610053,1763761838718,-500.0,9.972e-05,2]
[394610054,1763761838727,-500.0,9.972e-05,2]
[394610055,1763761838737,-500.0,9.972e-05,2]
[394610056,1763761838747,-178.21806678,9.972e-05,2]
[394610057,1763761838757,-500.0,9.972e-05,2]
[394610058,1763761838766,-500.0,9.972e-05,2]
[394610059,1763761838776,-500.0,9.972e-05,2]
[394610060,1763761838786,-500.0,9.972e-05,2]
[394610061,1763761838795,-500.0,9.972e-05,2]
[394610062,1763761838804,-500.0,9.972e-05,2]
[394610063,1763761838814,-300.0,9.972e-05,2]
[394610064,1763761838823,-1200.0,9.972e-05,2]
[394610065,1763761838833,-300.0,9.972e-05,2]
[394610066,1763761838843,-500.0,9.973e-05,2]
[394610067,1763761838853,-500.0,9.973e-05,2]
[394610068,1763761838863,-500.0,9.973e-05,2]
[394610069,1763761838874,-500.0,9.973e-05,2]
[394610070,1763761838885,-500.0,9.973e-05,2]
[394610071,1763761838894,-500.0,9.973e-05,2]
[394610072,1763761838905,-500.0,9.973e-05,2]
[394610073,1763761838915,-505.89614439,9.973e-05,2]
[394610074,1763761838924,-209.69791122,9.973e-05,2]
[394610075,1763761838934,-500.0,9.973e-05,2]
[394610076,1763761838944,-500.0,9.973e-05,2]
[394610077,1763761838954,-263.78807347,9.973e-05,2]
[394610078,1763761838963,-500.0,9.973e-05,2]
[394610079,1763761838972,-500.0,9.973e-05,2]
[394610080,1763761838981,-500.0,9.973e-05,2]
[394610081,1763761838991,-500.0,9.973e-05,2]
[394610082,1763761839001,-500.0,9.973e-05,2]
[394610083,1763761839010,-500.0,9.973e-05,2]
[394610084,1763761839020,-500.0,9.973e-05,2]
[394610085,1763761839030,-500.0,9.973e-05,2]
[394610086,1763761839040,-500.0,9.973e-05,2]
[394610087,1763761839050,-500.0,9.973e-05,2]
[394610088,1763761839061,-184.5965259,9.973e-05,2]
[394610089,1763761839070,-225.07445679,9.973e-05,2]
[394610090,1763761839080,-249.57603066,9.989e-05,2]
[394610091,1763761839089,-500.0,9.989e-05,2]
[394610092,1763761839099,-221.64535424,9.989e-05,2]
[394610093,1763761839108,-500.0,9.99e-05,2]
[394610094,1763761839118,-48277.84336266,9.991e-05,2]
[394610095,1763761839132,-841722.15663734,9.991e-05,2]
[394610096,1763761839142,-151.0,9.991e-05,2]
[394610097,1763761839155,-598.25175481,0.0001,2]
[394610098,1763761839165,-195.825,0.00010093,2]
[394610099,1763761839175,-183.731,0.00010093,2]
[394610100,1763761839186,-500.0,0.00010173,2]
[394610101,1763761839195,-13903.77622389,0.00010212,2]
[394610102,1763761839205,-500.0,0.00010264,2]
[394610103,1763761839214,-399.9796303,0.00010264,2]
[394610104,1763761839226,-90665.8636966,0.00010264,2]
[394610105,1763761839236,-11395.8942681,0.00010264,2]
[394610106,1763761839245,-222.905724,0.00010264,2]
[394610107,1763761839255,-2086.30517388,0.00010289,2]
[394610108,1763761839265,-1809.60800377,0.00010307,2]
[394610109,1763761839275,-152.75342558,0.00010311,2]
[394610110,1763761839285,-201.26442786,0.00010311,2]
[394610111,1763761839295,-151.45815104,0.00010311,2]
[394610112,1763761839304,-500.0,0.00010311,2]
[394610113,1763761839314,-671399.221029,0.00010312,2]
[394610291,1763761846370,-500.0,9.872e-05,2]
[394610292,1763761846380,-500.0,9.972e-05,2]
[394610293,1763761846391,-666475.11578243,0.00010312,2]
[394610294,1763761846403,-295.13886484,0.00010312,2]
[394610305,1763762059480,207.07447372,8.255e-05,2]
[394610306,1763762081872,207.07447372,8.255e-05,2]
[394610307,1763762103650,207.07447372,8.255e-05,2]
[394610308,1763762126584,207.07447372,8.255e-05,2]
[394610309,1763762148306,207.07447372,8.255e-05,2]
[394610310,1763762170045,207.07447372,8.255e-05,2]
[394610311,1763762192574,207.07447372,8.255e-05,2]
[394610312,1763762214079,207.07447372,8.255e-05,2]
[394610313,1763762235674,207.07447372,8.255e-05,2]
[394610314,1763762243785,207.07447372,8.255e-05,2]
[394610315,1763762252147,207.07447372,8.255e-05,2]
[394610316,1763762268031,150.49644959,8.213e-05,2]
[394610317,1763762291419,150.49644959,8.213e-05,2]
[394610318,1763762314143,150.49644959,8.213e-05,2]
[394610319,1763762337053,150.49644959,8.213e-05,2]
[394610320,1763762359519,150.49644959,8.213e-05,2]
[394610321,1763762382167,150.49644959,8.213e-05,2]
[394610322,1763762404011,150.49644959,8.213e-05,2]
[394610323,1763762426522,150.49644959,8.213e-05,2]
[394610324,1763762442037,150.49644959,8.213e-05,2]
[394610325,1763762465931,150.49644959,8.213e-05,2]
[394610326,1763762487515,150.49644959,8.213e-05,2]
[394610328,1763762509959,150.49644959,8.213e-05,2]
[394610329,1763762532980,150.49644959,8.213e-05,2]
[394610330,1763762554832,150.49644959,8.213e-05,2]
[394610331,1763762576891,150.49644959,8.213e-05,2]
[394610332,1763762598931,150.49644959,8.213e-05,2]
[394610333,1763762621358,150.49644959,8.213e-05,2]
[394610334,1763762643318,150.49644959,8.213e-05,2]
[394610335,1763762652006,150.49644959,8.213e-05,2]
[394610336,1763762667166,150.49644959,8.255e-05,2]
[394610337,1763762674991,150.49644959,8.255e-05,2]
[394610338,1763762690473,150.49644959,8.255e-05,2]
[394610339,1763762698702,150.49644959,8.255e-05,2]
[394610340,1763762713884,150.49644959,8.255e-05,2]
[394610341,1763762721690,150.49644959,8.255e-05,2]